bitfinex/quotes_ETHUSD_20260203
["timestamp","ask_amount","ask_price","bid_price","bid_amount"]
[1770105156812,0.0011,2327.0,2326.2,14.58261032]
[1770105156976,0.0011,2327.0,2326.3,13.80396244]
[1770105157988,11.99737974,2327.8,2326.3,13.80396244]
[1770105157989,1.07411402,2327.5,2326.3,13.80396244]
[1770105158190,1.07411402,2327.5,2326.5,12.72929452]
[1770105159430,13.0714013,2327.7,2326.6,1.07452935]
[1770105159718,0.9219988,2327.6,2326.6,1.07452935]
[1770105159895,0.0011,2326.8,2326.5,1.07456699]
[1770105160293,0.0011,2326.8,2326.6,0.53729829]
[1770105161713,0.0011,2326.8,2326.7,1.07448317]
[1770105162704,0.0011,2326.8,2326.6,1.61179312]
[1770105163310,0.0011,2326.8,2326.6,0.53729829]
[1770105163508,0.0011,2326.8,2326.6,1.07452536]
[1770105164324,0.0011,2326.8,2326.3,13.80396244]
[1770105166506,0.0011,2326.8,2326.3,1.07466792]
[1770105166914,0.0011,2326.8,2326.3,13.80396244]
[1770105167221,0.0011,2326.8,2326.4,1.99561244]
[1770105168526,0.0011,2326.8,2326.5,1.07457554]
[1770105170228,0.0011,2327.0,2326.5,13.80387006]
[1770105172228,0.0011,2327.0,2326.5,13.80487006]
[1770105172729,0.0011,2326.8,2326.5,13.80487006]
[1770105172928,0.0011,2326.8,2326.6,2.00987847]
[1770105174736,0.0011,2326.8,2326.7,1.07448317]
[1770105176016,13.55943984,2327.8,2326.7,14.04203623]
[1770105176210,13.41179072,2327.7,2326.7,14.04203623]
[1770105176435,14.86036991,2327.6,2326.8,2.03498474]
[1770105176603,0.92635204,2327.5,2326.8,2.03498474]
[1770105176906,13.41179072,2327.5,2326.8,2.03498474]
[1770105177112,0.92635204,2327.4,2326.7,1.07448317]
[1770105178033,14.48595248,2327.4,2326.7,1.07448317]
[1770105178231,0.92635204,2327.3,2326.7,1.07448317]
[1770105179131,0.92635204,2327.2,2326.7,1.07448317]
[1770105179337,2.52268141,2327.6,2326.7,1.07448317]
[1770105179632,1.60899632,2327.5,2326.7,3.33837333]
[1770105179936,0.92710985,2327.4,2326.7,3.33837333]
[1770105180237,0.92710985,2327.3,2326.7,3.33837333]
[1770105180404,0.92710985,2327.2,2326.7,3.33837333]
[1770105180609,0.68188647,2327.5,2326.7,3.33837333]
[1770105180808,0.92710205,2327.4,2326.7,3.33837333]
[1770105181033,0.92710205,2327.3,2326.8,2.06038591]
[1770105181336,0.92710205,2327.2,2326.8,2.06038591]
[1770105181534,0.68188647,2327.5,2326.8,2.06038591]
[1770105181720,0.92713086,2327.4,2326.8,2.06038591]
[1770105181920,0.92713086,2327.3,2326.9,1.07439082]
[1770105182122,0.92713086,2327.2,2326.8,3.13478702]
[1770105182320,14.2414426,2327.5,2326.8,3.13478702]
[1770105182637,2.78094416,2327.4,2326.8,1.07440111]
[1770105182831,0.92717221,2327.3,2326.8,1.07440111]
[1770105183320,0.92717221,2327.3,2326.7,1.07445685]
[1770105183321,13.41261089,2327.3,2326.7,1.07445685]
[1770105183522,0.92717221,2327.2,2326.7,1.07445685]
[1770105183737,0.92717221,2327.2,2326.8,1.07443685]
[1770105183935,0.92717221,2327.2,2326.5,12.96855306]
[1770105184232,1.85377195,2327.4,2326.6,1.29685531]
[1770105184435,0.92783679,2327.3,2326.6,1.29685531]
[1770105184633,0.92783679,2327.2,2326.6,14.26440837]
[1770105184929,13.55939428,2327.9,2326.7,12.96755306]
[1770105185130,13.55939428,2327.9,2326.7,12.96855306]
[1770105185330,15.98810921,2327.9,2326.9,12.96755306]
[1770105185849,0.0011,2327.2,2326.9,12.96755306]
[1770105186035,0.0011,2327.2,2327.0,1.07434464]
[1770105187045,13.55944551,2327.8,2327.0,1.07434464]
[1770105190353,12.48543868,2327.6,2326.5,0.001]
[1770105191059,12.51979851,2327.4,2326.0,1.07477698]
[1770105191243,12.48543868,2327.4,2326.1,1.07473669]
[1770105191739,12.48543868,2327.4,2326.2,1.07471281]
[1770105191941,12.48543868,2327.4,2326.0,12.96755306]
[1770105192253,13.559691,2327.2,2326.3,1.07466792]
[1770105194357,12.48543868,2327.2,2326.3,14.04222098]
[1770105194543,13.55969368,2327.2,2326.3,14.04222098]
[1770105196757,0.9269227,2327.1,2326.3,14.04222098]
[1770105196961,0.9269227,2327.0,2326.3,14.04222098]
[1770105197163,13.55969368,2327.2,2326.4,1.83409655]
[1770105197354,0.9268806,2327.1,2326.4,1.83409655]
[1770105197662,0.9268806,2327.0,2326.4,1.83409655]
[1770105197861,13.55969368,2327.2,2326.4,1.83409655]
[1770105198163,0.92688056,2327.1,2326.4,1.83409655]
[1770105198344,0.92688056,2327.0,2326.5,1.58863175]
[1770105198543,13.55969368,2327.2,2326.5,1.58863175]
[1770105198744,0.92683702,2327.1,2326.5,1.58863175]
[1770105198946,0.92683702,2327.0,2326.5,2.66317414]
[1770105199240,13.55969368,2327.2,2326.5,2.66317414]
[1770105199444,2.83514496,2327.1,2326.5,1.07554239]
[1770105199645,0.92679006,2327.0,2326.5,1.07554239]
[1770105199853,1.9083549,2327.1,2326.5,1.07554239]
[1770105200056,0.92679034,2327.0,2326.5,1.07554239]
[1770105200256,13.55969368,2327.2,2326.5,0.001]
[1770105200458,13.55969368,2327.2,2326.5,1.83526319]
[1770105200459,0.92674587,2327.1,2326.5,1.83526319]
[1770105200768,0.0011,2327.6,2326.5,14.06331456]
[1770105200946,1.07516788,2327.6,2326.5,14.06331456]
[1770105201147,13.00879202,2327.6,2326.5,14.06331456]
[1770105202843,0.0011,2327.6,2326.7,12.22805137]
[1770105203165,0.0011,2327.6,2326.8,13.55830944]
[1770105204477,11.93472414,2327.6,2326.8,1.33025807]
[1770105206394,11.93472414,2327.6,2326.9,1.07439082]
[1770105208246,13.00879835,2327.6,2326.8,2.40465847]
[1770105208443,13.00879835,2327.6,2326.7,1.07446396]
[1770105208672,11.93362414,2327.4,2326.7,1.07446396]
[1770105208847,11.93362414,2327.4,2326.8,1.0744221]
[1770105209775,11.93362414,2327.4,2326.7,1.07445615]
[1770105209974,11.93362414,2327.4,2326.6,1.07450255]
[1770105210275,13.0078303,2327.3,2326.6,1.07452935]
[1770105210464,13.83711409,2327.3,2326.6,1.07452935]
[1770105212177,13.83711409,2327.3,2326.7,0.001]
[1770105212878,0.8904517,2327.2,2326.7,0.001]
[1770105213052,13.83711409,2327.3,2326.7,0.001]
[1770105213253,0.89044999,2327.2,2326.7,0.001]
[1770105213454,13.83711409,2327.3,2326.7,0.001]
[1770105213650,11.93362414,2327.1,2326.7,0.001]
[1770105213980,11.93362414,2326.9,2326.3,0.001]
[1770105214178,11.93362414,2326.7,2325.9,1.07485153]
[1770105214380,0.89054359,2326.6,2326.1,13.30281169]
[1770105214676,1.49124085,2327.2,2326.2,13.55833254]
[1770105214875,0.89022293,2327.1,2326.2,13.55833254]
[1770105215077,0.89022293,2327.0,2326.2,13.55833254]
[1770105215278,14.4991255,2327.2,2326.2,13.55833254]
[1770105215577,0.89024966,2327.1,2326.2,13.55833254]
[1770105215751,0.89024966,2327.0,2326.3,1.46330929]
[1770105216052,1.96862075,2327.1,2326.3,1.46330929]
[1770105216252,0.89025295,2327.0,2326.3,1.46330929]
[1770105216453,3.04293703,2327.1,2326.4,1.07462173]
[1770105216652,0.89025256,2327.0,2326.4,1.07462173]
[1770105216875,14.97656117,2327.1,2326.4,1.07462173]
[1770105217175,2.81760985,2327.0,2326.4,1.07462173]
[1770105217362,1.92735713,2327.0,2326.4,1.07462173]
[1770105217963,14.93532885,2327.0,2326.4,1.07462173]
[1770105218282,13.86098127,2327.0,2326.4,1.07462173]
[1770105219761,11.93362414,2326.9,2326.2,1.33028117]
[1770105220078,11.93362414,2326.7,2325.7,16.52783178]
[1770105220263,0.89055498,2326.6,2325.7,16.52783178]
[1770105220463,0.89055498,2326.6,2325.8,12.22805137]
[1770105221571,1.07443699,2326.8,2325.8,12.22805137]
[1770105221772,0.89066292,2326.7,2325.8,12.22805137]
[1770105221975,0.89066292,2326.6,2325.9,13.88083455]
[1770105222192,1.07443699,2326.8,2326.0,1.07480653]
[1770105222374,0.89049799,2326.7,2326.0,1.07480653]
[1770105222672,0.89049799,2326.6,2326.0,1.07480653]
[1770105222869,0.89049799,2326.6,2325.9,18.18006068]
[1770105222870,13.00806113,2326.8,2325.9,2.72760596]
[1770105223180,11.93362414,2326.6,2325.9,1.07482278]
[1770105225091,13.00817208,2326.6,2325.8,1.07489895]
[1770105225392,0.88993978,2326.5,2326.0,0.001]
[1770105225588,13.00817208,2326.6,2326.0,0.001]
[1770105225794,0.88993672,2326.5,2326.0,0.001]
[1770105225990,13.00817208,2326.6,2326.0,0.001]
[1770105226195,2.8128503,2326.5,2326.0,0.001]
[1770105226494,1.92291342,2326.5,2326.0,0.001]
[1770105226690,13.85653756,2326.5,2326.0,0.001]
[1770105227684,14.93111601,2326.5,2326.0,0.001]
[1770105227886,11.93362414,2326.4,2325.8,0.001]
[1770105228087,11.93362414,2326.2,2325.8,0.001]
[1770105228291,1.4931116,2326.3,2325.8,12.22905137]
[1770105228480,2.99749427,2326.5,2325.8,12.22905137]
[1770105228682,14.93111841,2326.5,2325.8,0.001]
[1770105229002,12.82281558,2326.4,2325.8,0.001]
[1770105229296,1.58203099,2326.3,2325.8,0.001]
[1770105229882,1.07459692,2326.5,2325.8,0.001]
[1770105230593,13.36316565,2326.5,2325.8,0.001]
[1770105234206,0.0011,2326.8,2325.8,11.88545352]
[1770105234481,1.96286686,2326.7,2326.0,1.07480653]
[1770105234706,0.88837803,2326.6,2326.0,1.07480653]
[1770105234903,1.07448883,2326.7,2326.0,3.57821335]
[1770105235084,0.88837751,2326.6,2326.0,3.57821335]
[1770105235403,0.0011,2326.8,2326.2,11.88445352]
[1770105237811,12.3002769,2326.8,2326.2,1.07471399]
[1770105238000,13.53041459,2326.8,2326.2,1.07471399]
[1770105238201,13.53041459,2326.8,2326.0,2.50340682]
[1770105238400,13.18795758,2326.7,2326.1,1.07475719]
[1770105238615,12.2991769,2326.7,2326.1,1.07475719]
[1770105239506,0.0011,2326.6,2326.1,1.07475719]
[1770105239716,0.0011,2326.6,2326.1,1.86260245]
[1770105240009,0.0011,2326.6,2326.1,0.78784526]
[1770105240215,0.0011,2326.6,2326.0,3.57917713]
[1770105240216,12.3002769,2326.6,2326.0,0.001]
[1770105240398,13.22405567,2326.5,2326.0,0.001]
[1770105240596,12.2991769,2326.5,2326.0,0.001]
[1770105240807,0.0011,2326.6,2326.0,0.001]
[1770105241015,0.92452273,2326.5,2326.0,0.001]
[1770105241212,0.0011,2326.6,2326.0,0.001]
[1770105241512,0.92459493,2326.5,2326.0,0.001]
[1770105241720,14.19066762,2326.6,2326.0,0.001]
[1770105241888,12.2991769,2326.4,2326.0,0.001]
[1770105242216,0.92454852,2326.3,2326.0,0.001]
[1770105242513,13.37382494,2326.4,2326.0,0.001]
[1770105242714,2.69122275,2326.3,2326.0,0.001]
[1770105242909,1.7672132,2326.3,2326.0,0.001]
[1770105246423,2.84189153,2326.3,2326.0,0.001]
[1770105246729,1.7672132,2326.3,2326.0,0.001]
[1770105247419,2.96602897,2326.6,2326.0,0.001]
[1770105247625,0.9254175,2326.5,2326.0,0.001]
[1770105247832,0.9254175,2326.4,2326.0,0.001]
[1770105248016,0.9254175,2326.3,2326.0,0.001]
[1770105248212,1.07563825,2326.6,2325.5,0.001]
[1770105248213,12.2991769,2326.5,2325.5,0.001]
[1770105248428,12.2991769,2326.1,2325.5,0.001]
[1770105248624,0.92558967,2326.0,2325.5,0.001]
[1770105248947,0.92558967,2325.9,2325.5,0.001]
[1770105249109,1.07471412,2326.2,2325.5,0.001]
[1770105249312,2.6927884,2326.1,2325.5,11.88545352]
[1770105249515,0.92551365,2326.0,2325.5,11.88545352]
[1770105249738,1.76727475,2326.1,2325.5,11.88545352]
[1770105249923,0.92534011,2326.0,2325.5,11.88545352]
[1770105250229,1.07471412,2326.2,2325.5,11.88545352]
[1770105250422,0.92520346,2326.1,2325.5,11.88545352]
[1770105250633,0.92520346,2326.0,2325.5,12.96046982]
[1770105251242,1.61210758,2326.2,2325.5,12.96046982]
[1770105251455,0.92478902,2326.1,2325.5,12.96046982]
[1770105251708,0.92478902,2326.0,2325.5,12.96046982]
[1770105251929,1.61210758,2326.2,2325.5,12.96046982]
[1770105252114,1.51560457,2326.1,2325.5,12.96046982]
[1770105252315,0.92450816,2326.0,2325.5,12.96046982]
[1770105252525,1.66585673,2326.1,2326.0,0.001]
[1770105252713,2.59025904,2326.1,2325.5,12.96046982]
[1770105252918,0.92440231,2326.0,2325.5,12.96046982]
[1770105261963,0.0011,2326.2,2325.8,12.17088742]
[1770105264993,0.0011,2326.2,2326.0,0.001]
[1770105267488,0.0011,2326.4,2326.0,12.17188742]
[1770105267689,0.0011,2326.6,2326.1,12.17088742]
[1770105267983,0.0011,2326.6,2326.2,14.1655299]
[1770105269256,0.0011,2326.6,2326.2,1.99464248]
[1770105269456,0.0011,2326.6,2326.2,3.06932906]
[1770105270361,0.0011,2326.6,2326.2,15.24021648]
[1770105270568,0.0011,2326.8,2326.3,12.17088742]
[1770105270785,0.0011,2326.8,2326.4,13.69490907]
[1770105271481,0.0011,2326.8,2326.4,14.76951521]
[1770105271687,0.0011,2326.8,2326.4,1.52402165]
[1770105271888,11.77862739,2326.8,2326.2,3.06932213]
[1770105272488,0.0011,2326.8,2326.3,1.07466482]
[1770105272794,0.0011,2327.0,2326.5,12.17088742]
[1770105274389,0.0011,2327.0,2326.6,1.07452935]
[1770105276494,0.0011,2327.0,2326.6,13.24541677]
[1770105276674,0.0011,2327.0,2326.7,1.75436879]
[1770105278991,0.0011,2326.8,2326.7,2.82885196]
[1770105279390,0.0011,2327.0,2326.7,14.99973938]
[1770105283923,0.0011,2327.0,2326.7,2.82885196]
[1770105284305,0.0011,2327.0,2326.7,14.99973938]
[1770105284520,0.0011,2327.0,2326.8,1.92978313]
[1770105284913,0.0011,2327.0,2326.7,2.82885196]
[1770105288094,11.77862739,2327.0,2326.5,8.84624316]
[1770105288294,11.77862739,2327.0,2326.4,4.29848463]
[1770105288295,11.77862739,2327.0,2326.4,1.07458824]
[1770105288503,11.77862739,2327.0,2326.5,1.07457151]
[1770105288898,11.77862739,2327.0,2326.3,4.29863546]
[1770105289133,0.0011,2327.0,2326.6,12.17088742]
[1770105289316,0.0011,2327.0,2326.6,14.16514528]
[1770105289516,12.85297624,2327.0,2326.6,1.99425786]
[1770105289721,11.77862739,2327.0,2326.3,4.29863546]
[1770105290230,12.85297241,2327.0,2326.0,0.001]
[1770105290416,12.20446279,2326.8,2326.0,0.001]
[1770105290619,1.07544502,2327.0,2326.0,0.001]
[1770105290620,12.20446279,2326.6,2326.0,0.001]
[1770105290818,12.20446279,2326.4,2326.0,0.001]
[1770105291230,13.84535074,2326.6,2325.8,0.001]
[1770105291429,12.7707883,2326.4,2325.8,0.001]
[1770105291731,13.69475424,2326.3,2325.8,0.001]
[1770105291930,12.7707883,2326.3,2325.8,0.001]
[1770105292933,13.84550242,2326.2,2325.8,0.001]
[1770105294325,15.65991556,2326.2,2325.8,0.001]
[1770105296330,14.58520144,2326.2,2325.8,0.001]
[1770105301646,12.7707883,2325.8,2324.8,0.001]
[1770105301942,12.7707883,2325.8,2324.9,1.07531158]
[1770105302144,12.7707883,2326.0,2325.2,12.31036951]
[1770105302345,2.54887179,2326.0,2325.5,13.38539386]
[1770105302532,2.05710374,2326.1,2325.5,13.38539386]
[1770105302841,2.05710374,2326.1,2325.5,12.31036951]
[1770105303046,14.82789204,2326.1,2325.4,1.07505584]
[1770105303549,1.645683,2326.6,2325.7,12.31036951]
[1770105303716,14.4164713,2326.6,2325.8,2.00820607]
[1770105304142,14.4164713,2326.6,2326.0,0.001]
[1770105304436,14.4164713,2326.6,2325.5,13.38538514]
[1770105304437,0.0011,2326.0,2325.5,13.38538514]
[1770105304836,0.0011,2326.0,2325.8,0.001]
[1770105305726,0.0011,2326.2,2325.8,0.001]
[1770105305727,0.0011,2326.2,2325.8,12.31136951]
[1770105307248,0.0011,2326.2,2325.8,0.001]
[1770105308049,0.0011,2326.2,2325.8,1.76961501]
[1770105309846,0.0011,2326.2,2325.9,1.07485274]
[1770105310426,0.0011,2326.2,2325.8,2.84447752]
[1770105310726,12.7718883,2326.2,2325.8,1.07589694]
[1770105311249,12.7718883,2326.2,2325.8,0.001]
[1770105311938,13.84661245,2326.2,2325.2,2.73636943]
[1770105312185,13.84661245,2326.2,2325.2,15.04673894]
[1770105312394,1.81453375,2326.1,2325.3,1.93484984]
[1770105312848,13.84660839,2326.2,2325.4,20.08206069]
[1770105313150,0.0011,2326.2,2325.5,12.31036951]
[1770105314349,0.0011,2326.2,2325.6,1.0749914]
[1770105314720,1.62998914,2326.4,2325.7,7.77169118]
[1770105314925,0.0011,2326.8,2326.2,12.31036951]
[1770105315126,12.7718883,2326.8,2326.3,2.00820607]
[1770105315420,12.7718883,2326.8,2326.0,12.31036951]
[1770105315621,13.84632938,2326.8,2325.6,1.0749914]
[1770105315848,12.7707883,2326.6,2325.6,13.38536091]
[1770105316242,12.7707883,2326.4,2325.6,13.38536091]
[1770105316926,12.7707883,2326.4,2326.0,0.001]
[1770105318453,15.23006103,2326.4,2326.0,0.001]
[1770105318858,0.92565608,2326.3,2326.0,0.001]
[1770105319026,15.23006103,2326.4,2326.0,0.001]
[1770105319228,0.9256355,2326.3,2326.0,0.001]
[1770105319623,0.9256355,2326.3,2326.0,12.31136951]
[1770105319923,0.0011,2326.6,2326.1,1.23113695]
[1770105320252,0.92620931,2326.5,2326.0,12.31136951]
[1770105320425,0.92620931,2326.4,2326.0,1.07580546]
[1770105320630,1.07563457,2326.6,2326.0,1.07580546]
[1770105320831,0.92671709,2326.5,2326.0,1.07580546]
[1770105321032,0.92671709,2326.4,2326.0,0.001]
[1770105321252,0.92671709,2326.3,2326.0,0.001]
[1770105321451,1.34699742,2326.3,2326.0,0.001]
[1770105321752,12.54325709,2326.5,2326.0,0.001]
[1770105321955,0.92669455,2326.4,2326.0,0.001]
[1770105322259,0.92669455,2326.3,2326.0,0.001]
[1770105322551,13.61889166,2326.6,2326.0,0.001]
[1770105322731,0.92668992,2326.5,2326.0,0.001]
[1770105322936,0.92668992,2326.4,2326.0,0.001]
[1770105329261,0.92668992,2326.4,2326.2,0.001]
[1770105329432,0.92668992,2326.3,2326.2,0.001]
[1770105329639,0.0011,2326.6,2326.2,0.001]
[1770105329640,0.0011,2326.4,2326.2,0.001]
[1770105331966,0.0011,2326.8,2326.2,12.11884173]
[1770105332139,0.0011,2326.8,2326.3,13.3297259]
[1770105333177,0.0011,2326.8,2326.3,1.21188417]
[1770105333384,12.54545709,2326.8,2326.2,0.001]
[1770105333947,12.54545709,2326.8,2326.0,0.001]
[1770105333948,12.54325709,2326.6,2326.0,0.001]
[1770105336080,12.54545709,2326.8,2326.0,0.001]
[1770105336252,0.0011,2326.7,2326.0,12.11884173]
[1770105336448,0.0011,2326.7,2326.1,1.21188417]
[1770105336855,0.0011,2326.7,2325.6,1.07494517]
[1770105336856,12.54325709,2326.6,2325.2,1.66121988]
[1770105337084,0.03435983,2325.8,2325.2,1.07516347]
[1770105337261,12.54325709,2326.5,2325.6,1.0749838]
[1770105337589,12.54325709,2326.5,2325.4,13.19290294]
[1770105337767,13.7986828,2326.4,2325.6,1.07498314]
[1770105337971,1.07466792,2326.3,2325.6,1.07498314]
[1770105338170,1.07466792,2326.3,2325.5,13.19284585]
[1770105341288,1.07466792,2326.3,2325.8,0.001]
[1770105341486,0.0011,2326.2,2325.8,0.001]
[1770105341680,0.92698727,2326.2,2325.8,0.001]
[1770105341875,0.92588727,2326.1,2325.8,0.001]
[1770105342081,0.0011,2326.2,2324.1,3.09090194]
[1770105342082,12.57761692,2325.9,2324.1,3.09090194]
[1770105342393,12.54325709,2325.4,2324.1,13.19349232]
[1770105342561,1.07517632,2325.2,2324.1,13.19349232]
[1770105342756,2.08159593,2325.1,2324.1,13.19349232]
[1770105342994,0.92559389,2325.0,2324.6,0.001]
[1770105343167,0.92559389,2324.9,2324.6,0.001]
[1770105343372,0.0011,2325.0,2324.6,0.001]
[1770105343570,0.92368935,2324.9,2324.6,0.001]
[1770105343886,0.92365947,2324.8,2324.1,1.07568058]
[1770105344081,0.0011,2324.8,2324.0,1.07570138]
[1770105344282,0.0011,2324.8,2324.1,1.74966171]
[1770105344497,0.92263429,2324.7,2324.0,1.07573005]
[1770105344694,1.07543192,2324.7,2323.9,12.11784173]
[1770105344890,0.92253584,2324.6,2323.9,13.19360964]
[1770105345107,1.07649339,2324.8,2323.9,13.19360964]
[1770105345282,1.07649339,2324.8,2324.0,13.86753005]
[1770105346003,12.54325709,2324.7,2324.0,1.74968832]
[1770105346172,1.07649339,2324.8,2323.9,1.07576832]
[1770105346361,1.07649339,2324.8,2323.7,12.11784173]
[1770105346362,0.0011,2324.6,2323.8,1.07578979]
[1770105346998,0.0011,2324.6,2323.7,12.11784173]
[1770105347171,0.0011,2324.6,2323.7,13.19370416]
[1770105347394,0.0011,2324.6,2323.8,13.86765865]
[1770105347570,1.07532814,2324.9,2323.8,13.86765865]
[1770105347767,0.0011,2324.8,2323.8,13.86765865]
[1770105349193,0.0011,2324.8,2323.9,1.07577778]
[1770105350189,0.0011,2324.8,2323.9,13.19361951]
[1770105350399,0.0011,2324.8,2324.0,1.9246653]
[1770105350691,0.0011,2324.8,2324.0,14.02495195]
[1770105350864,12.41959939,2324.8,2324.0,1.9246653]
[1770105351062,12.41959939,2324.8,2323.8,2.82562838]
[1770105351282,1.07540757,2324.7,2323.8,2.82562838]
[1770105352665,16.7212297,2324.8,2323.8,15.58192031]
[1770105352666,0.0011,2324.6,2323.8,15.58192031]
[1770105353601,1.07517632,2325.2,2323.8,15.58192031]
[1770105353898,1.45680332,2325.1,2324.0,12.75629193]
[1770105354093,0.53867472,2325.1,2324.0,12.75629193]
[1770105354297,0.53867472,2325.1,2324.0,12.75729193]
[1770105355372,1.07526881,2325.0,2324.1,13.83197714]
[1770105355772,1.61393066,2325.1,2324.1,13.83197714]
[1770105355971,0.0011,2324.9,2324.2,14.56986373]
[1770105357407,0.0011,2324.9,2324.3,13.83188458]
[1770105357585,1.07513009,2325.3,2324.3,13.83188458]
[1770105357795,1.07623009,2325.3,2324.3,13.83188458]
[1770105357997,1.07623009,2325.3,2324.4,14.75107463]
[1770105358188,13.08775267,2325.3,2324.4,1.9947827]
[1770105358386,13.08775267,2325.3,2324.3,1.07559265]
[1770105359502,13.08775267,2325.3,2324.3,13.83188458]
[1770105361516,0.0011,2325.3,2324.3,13.83188458]
[1770105364292,0.92111333,2325.2,2324.3,13.83188458]
[1770105364610,0.0011,2325.3,2324.3,13.83188458]
[1770105364808,0.92111187,2325.2,2324.5,12.75629193]
[1770105364985,0.0011,2325.3,2324.5,12.75629193]
[1770105365186,0.92129284,2325.2,2324.5,12.75629193]
[1770105365411,12.01262258,2325.3,2324.4,1.9947827]
[1770105365601,12.01262258,2325.1,2324.3,1.07558987]
[1770105365913,0.92173697,2325.0,2324.3,1.07558987]
[1770105366281,0.0011,2324.9,2324.2,4.30253902]
[1770105366478,0.0011,2324.9,2324.2,1.07563892]
[1770105366708,0.92231345,2324.8,2324.1,1.07565428]
[1770105366918,13.75161542,2324.9,2324.0,1.0767276]
[1770105367207,0.0011,2324.7,2324.1,1.07567964]
[1770105367409,0.92228399,2324.6,2324.1,1.07567964]
[1770105367801,0.0011,2324.6,2324.1,13.83197157]
[1770105368020,0.0011,2324.6,2324.1,15.64555643]
[1770105369619,1.1475099,2324.9,2324.2,12.75629193]
[1770105369811,0.0011,2325.1,2324.2,12.75629193]
[1770105370128,0.92411888,2325.0,2324.2,12.75629193]
[1770105370329,0.0011,2325.1,2324.4,12.75629193]
[1770105370519,0.0011,2325.1,2324.3,2.64014829]
[1770105370703,0.0011,2325.1,2324.5,12.75629193]
[1770105372298,0.0011,2325.1,2324.6,1.07545384]
[1770105377050,0.0011,2325.1,2324.6,13.83174577]
[1770105377208,0.0011,2325.3,2324.7,14.56966346]
[1770105378452,0.0011,2325.3,2324.7,1.81337153]
[1770105378753,0.0011,2325.3,2324.7,1.07537562]
[1770105379142,0.0011,2324.9,2324.7,1.07537562]
[1770105379936,0.0011,2325.1,2324.7,13.83166755]
[1770105380136,0.0011,2325.1,2324.7,1.07537562]
[1770105380545,0.0011,2325.1,2324.5,1.0755001]
[1770105380735,0.0011,2325.1,2324.6,1.80473579]
[1770105382632,0.92642522,2325.0,2324.7,1.07540757]
[1770105382839,0.0011,2325.1,2324.7,1.07540757]
[1770105383142,0.92637722,2325.0,2324.7,1.07540757]
[1770105383436,0.0011,2325.1,2324.7,1.07540757]
[1770105383650,0.92653313,2325.0,2324.7,1.07540757]
[1770105383850,0.0011,2325.1,2324.7,1.79358801]
[1770105384039,0.92652708,2325.0,2324.7,1.79358801]
[1770105384240,0.0011,2325.1,2324.7,1.79358801]
[1770105384435,0.92660723,2325.0,2324.7,1.79358801]
[1770105384619,0.0011,2325.1,2324.7,1.79358801]
[1770105384820,0.9266074,2325.0,2324.7,1.79358801]
[1770105385015,0.0011,2325.1,2324.7,1.79358801]
[1770105385355,0.92661238,2325.0,2324.7,1.79358801]
[1770105385520,0.0011,2325.1,2324.7,1.79358801]
[1770105385719,0.92669581,2325.0,2324.7,1.79358801]
[1770105385922,0.0011,2325.1,2324.7,1.79358801]
[1770105386718,0.0011,2325.1,2324.9,1.07531506]
[1770105387825,0.0011,2325.3,2324.9,13.74501316]
[1770105390930,1.1475099,2325.7,2325.0,12.6696981]
[1770105391134,4.76985197,2325.9,2325.0,12.6696981]
[1770105391632,0.0011,2326.1,2325.0,12.6696981]
[1770105391827,0.0011,2326.1,2324.9,1.07531506]
[1770105391828,0.0011,2326.1,2325.2,12.6696981]
[1770105392227,0.0011,2326.3,2325.4,12.6696981]
[1770105393633,12.31242156,2326.3,2325.4,12.6696981]
[1770105393862,12.31242156,2326.3,2325.3,1.07513009]
[1770105394061,12.31132156,2326.1,2325.2,1.07517614]
[1770105394267,1.34588315,2326.0,2325.0,4.30070531]
[1770105395269,13.65720471,2326.0,2325.0,4.30070531]
[1770105397665,14.73201694,2326.0,2325.0,4.30070531]
[1770105397962,14.73201694,2326.0,2325.0,16.97040341]
[1770105398168,0.92461984,2325.9,2325.0,16.97040341]
[1770105398372,1.45818246,2325.9,2325.1,1.80466722]
[1770105398668,1.45818246,2325.9,2325.2,1.07517632]
[1770105401778,14.53354692,2326.2,2325.2,13.74487442]
[1770105402073,13.23589223,2326.1,2325.2,13.74487442]
[1770105402271,0.92457067,2326.0,2325.2,13.74487442]
[1770105404057,13.23589223,2326.0,2325.2,1.07517632]
[1770105404384,0.92457067,2325.9,2325.2,1.07517632]
[1770105404570,0.92457067,2325.9,2325.2,3.49027155]
[1770105405853,0.92457067,2325.9,2325.2,16.16096965]
[1770105408073,0.92457067,2325.9,2325.3,12.6696981]
[1770105408359,0.0011,2326.0,2325.3,12.6696981]
[1770105410194,0.0011,2326.0,2325.5,12.6696981]
[1770105410391,0.0011,2326.0,2325.6,13.35703606]
[1770105412288,0.0011,2326.0,2325.7,1.07494517]
[1770105416577,0.0011,2326.0,2325.7,13.89706902]
[1770105417096,0.0011,2326.2,2325.7,13.89706902]
[1770105417877,0.0011,2326.2,2325.7,1.07494517]
[1770105418077,0.0011,2326.2,2325.7,3.46205603]
[1770105420609,0.0011,2326.2,2325.9,0.001]
[1770105422601,0.0011,2326.3,2326.0,1.07480653]
[1770105422799,0.0011,2326.4,2326.0,13.89693038]
[1770105424234,0.0011,2326.4,2326.0,1.07480653]
[1770105425607,0.0011,2326.4,2326.0,13.35962712]
[1770105426483,0.0011,2326.4,2326.0,0.53750327]
[1770105426683,0.0011,2326.4,2325.9,0.001]
[1770105430790,0.0011,2326.4,2325.9,12.82312385]
[1770105432315,0.0011,2326.4,2326.0,1.07480653]
[1770105433424,0.0011,2326.4,2326.0,13.89693038]
[1770105434719,0.0011,2326.8,2326.1,12.82212385]
[1770105434924,0.0011,2326.8,2326.3,12.82212385]
[1770105435134,0.0011,2327.0,2326.4,12.82212385]
[1770105436141,11.91326836,2327.0,2326.2,1.38969304]
[1770105436309,12.98662904,2326.8,2326.1,0.001]
[1770105436508,12.83544073,2326.7,2325.9,1.07585274]
[1770105436703,11.91216836,2326.5,2325.9,1.07585274]
[1770105437105,11.91216836,2326.7,2325.9,1.07585274]
[1770105437300,0.92353158,2326.6,2325.9,1.07585274]
[1770105437529,0.92353158,2326.5,2325.9,1.07585274]
[1770105439017,0.92353158,2326.5,2325.9,0.001]
[1770105439412,0.92353158,2326.5,2325.9,12.82312385]
[1770105439611,14.52789763,2326.9,2325.9,12.82312385]
[1770105439612,1.15369299,2326.8,2325.9,12.82312385]
[1770105439817,0.92389355,2326.7,2325.9,12.82312385]
[1770105440018,1.15479299,2327.0,2326.0,14.10443624]
[1770105440337,0.92417715,2326.9,2326.0,14.10443624]
[1770105440506,0.0011,2327.0,2326.0,14.10443624]
[1770105440707,0.0008024,2327.1,2326.3,11.94224539]